Workbook

Sheet Content
B2: Document/Tab | C2: Definition | D2: Required for this project?
B3: Executive summary | C3: An executive summary is a brief overview of the project that explains the purpose of the project, the methodology used, the key findings, and the recommendations for improvement. | D3: Yes
B4: Staff&Patient Survey Dashboard | C4: A Patient and staff surveys are an important tool for continuous improvement projects because they provide a direct perspective from the people who are most affected by the process under review. The dashboard provide a summary of this data. | D4: Yes
B5: Value Stream Map | C5: A Value Stream Map provides the entire process flow view from start to finish. It aids in creating plans to optimize the process and helps identify wastes depicted by Kaizen Bursts. | D5: Yes
B6: Time observation sheets (Lead) | C6: Time observation sheets are used to collect data on the amount of time it takes to complete the entire process. This data can then be used to identify areas for improvement, such as reducing waste or bottlenecks. | D6: Yes
B7: Time observation sheets (Cycle) | C7: Time observation sheets are used to collect data on the amount of time it takes an operator to complete his work. This data can then be used to identify areas for improvement, such as reducing waste or bottlenecks. | D7: Yes

Sheet Executive Summary
B2: Executive Summary
B3: SDEC is the provision of same day care for emergency patients who would otherwise be admitted to hospital. (NHS England) The roll out and development of Same Day Emergency Care (SDEC) is a central strand of NHS England’s Urgent and Emergency Care Strategy which is designed to support Trust’s nationally in dealing with increasing acute demand, crowding in Emergency departments and the need to restore critical services following the pandemic. (NHS Benchmarking) Under this care model, patients presenting at hospital with relevant conditions can be rapidly assessed, diagnosed and treated without being admitted to a ward, and if clinically safe to do so, will go home the same day their care is provided. (NHS England) Following the implementation of the RAFTING Model, the KGH ED Team in partnership with the Continuous Improvement Team and other stakeholders, have continued work in KGH ED to re-design and re-launch KGH SDEC. The Team buildt on the successes from the RAFTING project and used learning points to engage staff and map out the plans for the SDEC project. This facilitated being able to respond to changes or adaptations required, while providing quality care to patients and ensuring the best process was running at all times. Staff feedback about the change process has been positive, with 100% of staff surveyed stating they have a clear understanding of their role in SDEC. The positive impact on patients was clearly demonstrated as 100% felt that they received good care and 86% felt that their plan was clearly communicated to them. With regards to the data collected, please see a summary below: 1. Lead Time, the time it takes from when a patient is allocated to SDEC to when they are discharged from SDEC is: 4hrs. 32mins. 2. Processing Time, the time the process takes without waiting and walking time is: 2hrs 15mins. 3. Waiting Time, the time the patient is waiting for the next step within the process to happen: 1hr 36mins. 4. 16 improvement opportunities were observed with 13% of these having initiatives already started or completed to address them. Main themes identified for continuous improvement following the implementation of SDEC are as follows:  Refine Processes to reduce observed process waste  Address IT related limitations  Conitnue Communication/Education with ED staff and other departments Learning from this project, key lessons are as follows: 1. Following the Trust Continuous Improvement Methodology facilitated reduction of avoidable process wastes. 2. Planning and involvement of all relevant staff groups promoted preparation for the changes and facilitated readiness to respond to any challenges. 3. Wide engagement, communication and education with staff facilitated smooth navigation of the change process.

Sheet Staff&Patient Survey Dashboard
B2: Staff survey (SDEC)
B28: Patient survey (SDEC)

Sheet VSM (full)
B2: Process Boundaries
A3: From: | B3: When patient is allocated to SDEC.
A4: To: | B4: When patient is discharged from SDEC.
B25: I am allocated to SDEC | D25: The ADA is taking my blood test and perform my ECG | F25: I am seen by a Nurse | H25: I am seen by a Doctor | J25: I go for a scan/test (out of SDEC) | L25: Nurse does my Observations (Vital Signs) | N25: I am discharged from SDEC | T25: Wait time median
B26: The patient is allocated to SDEC from RAFTING. The exclusions criteria have been assessed and the patient will be classified safe to sit or trolley. | D26: The ADA will take the blood tests requested from RAFTING doctor and ECG if requried | F26: The nurse is taking the vital sign and other tests if required (i.e. urine sample/oregnancy test) | H26: The doctor assess medical notes, assess the history of the patients and assess the patient physically if needed. At this point, the diagnostics are requested. | J26: The patient is now taken to diagnostic department and have the test done. | L26: Before being discharge the nurse takes vital signs. | N26: Patient leaves SDEC
D27: ADA X 1 | F27: NURSE X 1 | H27: DOCTOR X 1 | J27: PORTER X 1 | L27: NURSE X 1 | U27: =B29+C28+D29+F29 -> 01:11:30
C28: 00:21:00 | E28: 00:03:00 | G28: 00:31:00 | I28: 00:16:00 | K28: 00:18:00 | M28: 00:07:00
B29: 00:00:00 | D29: 00:27:30 | F29: 00:23:00 | H29: 01:27:57 | J29: 00:35:30 | L29: 00:03:00 | N29: 00:00:00 | P29: Totals | U29: =U27+T27+T26 -> 01:11:30
P30: Lead Time | Q30: =B29+C28+D29+E28+F29+G28+H29+I28+J29+K28+L29+M28+N29 -> 04:32:57
A31: CT: | B31: 00:00:00 | C31: CT: | D31: 00:27:30 | E31: CT: | F31: 00:23:00 | G31: CT: | H31: 01:27:57 | I31: CT: | J31: 00:35:30 | K31: CT: | L31: 00:03:00 | M31: CT: | N31: 00:00:00 | P31: Processing Time | Q31: =D32+F32+H32+J32+L32+N32 -> 02:15:57
A32: PT: | B32: 00:00:00 | C32: PT: | D32: 00:27:30 | E32: PT: | F32: 00:23:00 | G32: PT: | H32: 00:46:57 | I32: PT: | J32: 00:35:30 | K32: PT: | L32: 00:03:00 | M32: PT: | N32: 00:00:00 | P32: Change Over Time | Q32: =D33+F33+H33+J33+L33+N33 -> 00:00:00
A33: CO | B33: 00:00:00 | C33: CO | D33: 00:00:00 | E33: CO | F33: 00:00:00 | G33: CO | H33: 00:00:00 | I33: CO | J33: 00:00:00 | K33: CO | L33: 00:00:00 | M33: CO | N33: 00:00:00 | P33: Value Added (VA) Time | Q33: =D34+F34+H34+J34+L34+N34 -> 01:39:30
A34: VA: | B34: 00:00:00 | C34: VA: | D34: 00:09:00 | E34: VA: | F34: 00:23:00 | G34: VA: | H34: 00:29:00 | I34: VA: | J34: 00:35:30 | K34: VA: | L34: 00:03:00 | M34: VA: | N34: 00:00:00 | P34: Non Value Added (NVA) Time | Q34: =C28+D35+E28+F35+G28+H35+I28+J35+K28+L35+M28+N35 -> 02:53:27
A35: NVA: | B35: 00:00:00 | C35: NVA: | D35: 00:18:30 | E35: NVA: | F35: 00:00:00 | G35: NVA: | H35: 00:58:57 | I35: NVA: | J35: 00:00:00 | K35: NVA: | L35: 00:00:00 | M35: NVA: | N35: 00:00:00 | P35: % VA | Q35: =Q33/Q30 -> 0.3645356292
A36: %VA: | B36: 00:00:00 | C36: %VA: | D36: 0.33 | E36: %VA: | F36: 1 | G36: %VA: | H36: 0.33 | I36: %VA: | J36: 1 | K36: %VA: | L36: 1 | M36: %VA: | N36: 00:00:00

Sheet Time Ob (Lead TOF)
B1: Time Observation Form - Lead Time
B2: Process Boundaries
B3: From | C3: Pt Allocated to SDEC | E3: Process | G3: Patient journey through SDEC | J3: Time Available (mins) | M3: Date | P3: 12/06/2023 - 13/06/2023
B4: To | C4: Pt Leaves SDEC | E4: Cycle | G4: All | J4: Demand | M4: Time | P4: 08:00 - 16:00
B5: Area | C5: KGH - SDEC | E5: Operator Title | G5: All | J5: Takt Time (Sec) | M5: Completed By | P5: L. Dobbie
E7: Patient Scored >> | F7: YES | G7: YES | H7: YES | I7: YES | J7: YES | K7: YES | L7: YES
J8: Most Frequent Task Time
B9: Step # | C9: Description of Operation | D9: The step is VA/NVA based on customer view | E9: Waiting/Walking Time (W) / Processing Time (P) | F9: 1 | G9: 2 | H9: 3 | I9: 4 | J9: 5 | K9: 6 | L9: 7 | M9: Include zero values in Mode | N9: Mode | O9: Include zero values in Median | P9: Median | Q9: Selected Value (User input required)
B10: 1 | C10: Pt allocated to SDEC | F10: 00:00:00 | G10: 00:00:00 | H10: 00:00:00 | I10: 00:00:00 | J10: 00:00:00 | K10: 00:00:00 | L10: 00:00:00
D11: VA | E11: P | F11: =IF(ISBLANK(F10),"",IF(ISBLANK(F12),"",ROUND(F12-F10,10))) -> 00:00:00 | G11: 00:00:00 | H11: 00:00:00 | I11: 00:00:00 | J11: 00:00:00 | K11: 00:00:00 | L11: 00:00:00 | M11: NO | N11: =IFERROR(IF(M11="NO",MODE(IF($F$7:$L$7="YES",IF(F11:L11>0,F11:L11))),MODE(IF($F$7:$L$7="YES",F11:L11))),"") ->  | O11: NO | P11: =IFERROR(IF(O11="NO",MEDIAN(IF($F$7:$L$7="YES",IF(F11:L11>0,F11:L11))),MEDIAN(IF($F$7:$L$7="YES",F11:L11))),"") ->  | Q11: Mode
B12: =B10+1 -> 2 | C12: Pt waits | F12: 00:00:00 | G12: 00:00:00 | H12: 00:00:00 | I12: 00:00:00 | J12: 00:00:00 | K12: 00:00:00 | L12: 00:00:00
D13: NVA | E13: W | F13: =IF(ISBLANK(F12),"",IF(ISBLANK(F14),"",ROUND(F14-F12,10))) -> 00:53:00 | G13: 00:00:00 | H13: 00:33:00 | I13: 00:00:00 | J13: 00:21:00 | K13: 00:14:00 | L13: 00:06:00 | M13: NO | N13: =IFERROR(IF(M13="NO",MODE(IF($F$7:$L$7="YES",IF(F13:L13>0,F13:L13))),MODE(IF($F$7:$L$7="YES",F13:L13))),"") ->  | O13: NO | P13: =IFERROR(IF(O13="NO",MEDIAN(IF($F$7:$L$7="YES",IF(F13:L13>0,F13:L13))),MEDIAN(IF($F$7:$L$7="YES",F13:L13))),"") -> 00:21:00 | Q13: =IF(N13="","Median","Mode") -> Median
B14: =B12+1 -> 3 | C14: HCA / ADA Obs | F14: 00:53:00 | G14: 00:00:00 | H14: 00:33:00 | I14: 00:00:00 | J14: 00:21:00 | K14: 00:14:00 | L14: 00:06:00
D15: VA | E15: P | F15: =IF(ISBLANK(F14),"",IF(ISBLANK(F16),"",ROUND(F16-F14,10))) -> 00:09:00 | G15: 00:00:00 | H15: 00:08:00 | I15: 00:15:00 | J15: 00:15:00 | K15: 00:05:00 | L15: 00:10:00 | M15: NO | N15: =IFERROR(IF(M15="NO",MODE(IF($F$7:$L$7="YES",IF(F15:L15>0,F15:L15))),MODE(IF($F$7:$L$7="YES",F15:L15))),"") -> 00:15:00 | O15: NO | P15: =IFERROR(IF(O15="NO",MEDIAN(IF($F$7:$L$7="YES",IF(F15:L15>0,F15:L15))),MEDIAN(IF($F$7:$L$7="YES",F15:L15))),"") -> 00:09:30 | Q15: =IF(N15="","Median","Mode") -> Mode
B16: =B14+1 -> 4 | C16: Pt waits | F16: 01:02:00 | G16: 00:00:00 | H16: 00:41:00 | I16: 00:15:00 | J16: 00:36:00 | K16: 00:19:00 | L16: 00:16:00
D17: NVA | E17: W | F17: =IF(ISBLANK(F16),"",IF(ISBLANK(F18),"",ROUND(F18-F16,10))) -> 00:03:00 | G17: 00:01:00 | H17: 00:02:00 | I17: 00:00:00 | J17: 00:18:00 | K17: 00:12:00 | L17: 00:00:00 | M17: NO | N17: =IFERROR(IF(M17="NO",MODE(IF($F$7:$L$7="YES",IF(F17:L17>0,F17:L17))),MODE(IF($F$7:$L$7="YES",F17:L17))),"") ->  | O17: NO | P17: =IFERROR(IF(O17="NO",MEDIAN(IF($F$7:$L$7="YES",IF(F17:L17>0,F17:L17))),MEDIAN(IF($F$7:$L$7="YES",F17:L17))),"") -> 00:03:00 | Q17: =IF(N17="","Median","Mode") -> Median
B18: =B16+1 -> 5 | C18: Nurse attends | F18: 01:05:00 | G18: 00:01:00 | H18: 00:43:00 | I18: 00:15:00 | J18: 00:54:00 | K18: 00:31:00 | L18: 00:16:00
D19: VA | E19: P | F19: =IF(ISBLANK(F18),"",IF(ISBLANK(F20),"",ROUND(F20-F18,10))) -> 00:00:00 | G19: 00:54:00 | H19: 00:19:00 | I19: 00:27:00 | J19: 00:44:00 | K19: 00:15:00 | L19: 00:50:00 | M19: NO | N19: =IFERROR(IF(M19="NO",MODE(IF($F$7:$L$7="YES",IF(F19:L19>0,F19:L19))),MODE(IF($F$7:$L$7="YES",F19:L19))),"") ->  | O19: NO | P19: =IFERROR(IF(O19="NO",MEDIAN(IF($F$7:$L$7="YES",IF(F19:L19>0,F19:L19))),MEDIAN(IF($F$7:$L$7="YES",F19:L19))),"") -> 00:35:30 | Q19: =IF(N19="","Median","Mode") -> Median
B20: =B18+1 -> 6 | C20: Pt waits | F20: 01:05:00 | G20: 00:55:00 | H20: 01:02:00 | I20: 00:42:00 | J20: 01:38:00 | K20: 00:46:00 | L20: 01:06:00
D21: NVA | E21: W | F21: =IF(ISBLANK(F20),"",IF(ISBLANK(F22),"",ROUND(F22-F20,10))) -> 01:01:00 | G21: 01:12:00 | H21: 01:05:00 | I21: 00:09:00 | J21: 00:31:00 | K21: 00:26:00 | L21: 00:13:00 | M21: NO | N21: =IFERROR(IF(M21="NO",MODE(IF($F$7:$L$7="YES",IF(F21:L21>0,F21:L21))),MODE(IF($F$7:$L$7="YES",F21:L21))),"") ->  | O21: NO | P21: =IFERROR(IF(O21="NO",MEDIAN(IF($F$7:$L$7="YES",IF(F21:L21>0,F21:L21))),MEDIAN(IF($F$7:$L$7="YES",F21:L21))),"") -> 00:31:00 | Q21: =IF(N21="","Median","Mode") -> Median
B22: =B20+1 -> 7 | C22: Doctor attends | F22: 02:06:00 | G22: 02:07:00 | H22: 02:07:00 | I22: 00:51:00 | J22: 02:09:00 | K22: 01:12:00 | L22: 01:19:00
D23: VA | E23: P | F23: =IF(ISBLANK(F22),"",IF(ISBLANK(F24),"",ROUND(F24-F22,10))) -> 00:01:00 | G23: 00:10:00 | H23: 00:10:00 | I23: 00:04:00 | J23: 00:00:00 | K23: 00:06:00 | L23: 00:00:00 | M23: NO | N23: =IFERROR(IF(M23="NO",MODE(IF($F$7:$L$7="YES",IF(F23:L23>0,F23:L23))),MODE(IF($F$7:$L$7="YES",F23:L23))),"") -> 00:10:00 | O23: NO | P23: =IFERROR(IF(O23="NO",MEDIAN(IF($F$7:$L$7="YES",IF(F23:L23>0,F23:L23))),MEDIAN(IF($F$7:$L$7="YES",F23:L23))),"") -> 00:06:00 | Q23: =IF(N23="","Median","Mode") -> Mode
B24: =B22+1 -> 8 | C24: Pt waits | F24: 02:07:00 | G24: 02:17:00 | H24: 02:17:00 | I24: 00:55:00 | J24: 02:09:00 | K24: 01:18:00 | L24: 01:19:00
D25: NVA | E25: W | F25: =IF(ISBLANK(F24),"",IF(ISBLANK(F26),"",ROUND(F26-F24,10))) -> 00:00:00 | G25: 00:32:00 | H25: 00:07:00 | I25: 00:00:00 | J25: 00:00:00 | K25: 00:25:00 | L25: 00:04:00 | M25: NO | N25: =IFERROR(IF(M25="NO",MODE(IF($F$7:$L$7="YES",IF(F25:L25>0,F25:L25))),MODE(IF($F$7:$L$7="YES",F25:L25))),"") ->  | O25: NO | P25: =IFERROR(IF(O25="NO",MEDIAN(IF($F$7:$L$7="YES",IF(F25:L25>0,F25:L25))),MEDIAN(IF($F$7:$L$7="YES",F25:L25))),"") -> 00:16:00 | Q25: =IF(N25="","Median","Mode") -> Median
B26: =B24+1 -> 9 | C26: Pt goes for scan / test out of SDEC | F26: 02:07:00 | G26: 02:49:00 | H26: 02:24:00 | I26: 00:55:00 | J26: 02:09:00 | K26: 01:43:00 | L26: 01:23:00
D27: VA | E27: P | F27: =IF(ISBLANK(F26),"",IF(ISBLANK(F28),"",ROUND(F28-F26,10))) -> 00:15:00 | G27: 00:08:00 | H27: 00:03:00 | I27: 00:21:00 | J27: 00:11:00 | K27: 00:13:00 | L27: 00:21:00 | M27: NO | N27: =IFERROR(IF(M27="NO",MODE(IF($F$7:$L$7="YES",IF(F27:L27>0,F27:L27))),MODE(IF($F$7:$L$7="YES",F27:L27))),"") -> 00:21:00 | O27: NO | P27: =IFERROR(IF(O27="NO",MEDIAN(IF($F$7:$L$7="YES",IF(F27:L27>0,F27:L27))),MEDIAN(IF($F$7:$L$7="YES",F27:L27))),"") -> 00:13:00 | Q27: =IF(N27="","Median","Mode") -> Mode
B28: =B26+1 -> 10 | C28: Pt waits | F28: 02:22:00 | G28: 02:57:00 | H28: 02:27:00 | I28: 01:16:00 | J28: 02:20:00 | K28: 01:56:00 | L28: 01:44:00
D29: NVA | E29: W | F29: =IF(ISBLANK(F28),"",IF(ISBLANK(F30),"",ROUND(F30-F28,10))) -> 00:03:00 | G29: 02:05:00 | H29: 00:39:00 | I29: 00:18:00 | J29: 00:00:00 | K29: 00:00:00 | L29: 00:12:00 | M29: NO | N29: =IFERROR(IF(M29="NO",MODE(IF($F$7:$L$7="YES",IF(F29:L29>0,F29:L29))),MODE(IF($F$7:$L$7="YES",F29:L29))),"") ->  | O29: NO | P29: =IFERROR(IF(O29="NO",MEDIAN(IF($F$7:$L$7="YES",IF(F29:L29>0,F29:L29))),MEDIAN(IF($F$7:$L$7="YES",F29:L29))),"") -> 00:18:00 | Q29: =IF(N29="","Median","Mode") -> Median
B30: =B28+1 -> 11 | C30: Nurse Obs | F30: 02:25:00 | G30: 05:02:00 | H30: 03:06:00 | I30: 01:34:00 | J30: 02:20:00 | K30: 01:56:00 | L30: 01:56:00
D31: VA | E31: P | F31: =IF(ISBLANK(F30),"",IF(ISBLANK(F32),"",ROUND(F32-F30,10))) -> 00:02:00 | G31: 00:04:00 | H31: 00:00:00 | I31: 00:00:00 | J31: 00:00:00 | K31: 00:00:00 | L31: 00:00:00 | M31: NO | N31: =IFERROR(IF(M31="NO",MODE(IF($F$7:$L$7="YES",IF(F31:L31>0,F31:L31))),MODE(IF($F$7:$L$7="YES",F31:L31))),"") ->  | O31: NO | P31: =IFERROR(IF(O31="NO",MEDIAN(IF($F$7:$L$7="YES",IF(F31:L31>0,F31:L31))),MEDIAN(IF($F$7:$L$7="YES",F31:L31))),"") -> 00:03:00 | Q31: =IF(N31="","Median","Mode") -> Median
B32: =B30+1 -> 12 | C32: Pt waits | F32: 02:27:00 | G32: 05:06:00 | H32: 03:06:00 | I32: 01:34:00 | J32: 02:20:00 | K32: 01:56:00 | L32: 01:56:00
D33: NVA | E33: W | F33: =IF(ISBLANK(F32),"",IF(ISBLANK(F34),"",ROUND(F34-F32,10))) -> 00:03:00 | G33: 00:12:00 | H33: 00:00:00 | I33: 00:00:00 | J33: 00:08:00 | K33: 00:06:00 | L33: 00:00:00 | M33: NO | N33: =IFERROR(IF(M33="NO",MODE(IF($F$7:$L$7="YES",IF(F33:L33>0,F33:L33))),MODE(IF($F$7:$L$7="YES",F33:L33))),"") ->  | O33: NO | P33: =IFERROR(IF(O33="NO",MEDIAN(IF($F$7:$L$7="YES",IF(F33:L33>0,F33:L33))),MEDIAN(IF($F$7:$L$7="YES",F33:L33))),"") -> 00:07:00 | Q33: =IF(N33="","Median","Mode") -> Median
B34: =B32+1 -> 13 | C34: Discharged | F34: 02:30:00 | G34: 05:18:00 | H34: 03:06:00 | I34: 01:34:00 | J34: 02:28:00 | K34: 02:02:00 | L34: 01:56:00
M35: NO | N35: =IFERROR(IF(M35="NO",MODE(IF($F$7:$L$7="YES",IF(F35:L35>0,F35:L35))),MODE(IF($F$7:$L$7="YES",F35:L35))),"") ->  | O35: NO | P35: =IFERROR(IF(O35="NO",MEDIAN(IF($F$7:$L$7="YES",IF(F35:L35>0,F35:L35))),MEDIAN(IF($F$7:$L$7="YES",F35:L35))),"") ->  | Q35: =IF(N35="","Median","Mode") -> Median
C37: Time For One Observation | F37: 02:30:00 | G37: 05:18:00 | H37: 03:06:00 | I37: 01:34:00 | J37: 02:28:00 | K37: 02:02:00 | L37: 01:56:00 | P37: =P38+P39 -> 03:00:30
C38: Minus Walking/Wait Time | D38: W | F38: =SUMIF($E$10:$E$35,"W",F10:F35) -> 02:03:00 | G38: 04:02:00 | H38: 02:26:00 | I38: 00:27:00 | J38: 01:18:00 | K38: 01:23:00 | L38: 00:35:00 | P38: =SUMIFS(P10:P35,E10:E35,"W",Q10:Q35,"median")+SUMIFS(N10:N35,E10:E35,"W",Q10:Q35,"Mode") -> 01:36:00
C39: .= Processing Time | D39: P | F39: =SUMIF($E$10:$E$33,"P",F10:F33) -> 00:27:00 | G39: 01:16:00 | H39: 00:40:00 | I39: 01:07:00 | J39: 01:10:00 | K39: 00:39:00 | L39: 01:21:00 | P39: =SUMIFS(P10:P35,E10:E35,"P",Q10:Q35,"median")+SUMIFS(N10:N35,E10:E35,"P",Q10:Q35,"Mode") -> 01:24:30
C41: Value add Total | D41: VA | F41: =SUMIF($D$10:$D$33,"VA",F10:F33) -> 00:27:00 | G41: 01:16:00 | H41: 00:40:00 | I41: 01:07:00 | J41: 01:10:00 | K41: 00:39:00 | L41: 01:21:00 | P41: =SUMIFS(P10:P35,D10:D35,"VA",Q10:Q35,"median")+SUMIFS(N10:N35,D10:D35,"VA",Q10:Q35,"Mode") -> 01:24:30
C42: Non Value Add Total | D42: NVA | F42: =SUMIF($D$10:$D$33,"NVA",F10:F33) -> 02:03:00 | G42: 04:02:00 | H42: 02:26:00 | I42: 00:27:00 | J42: 01:18:00 | K42: 01:23:00 | L42: 00:35:00 | P42: =SUMIFS(P10:P35,D10:D35,"NVA",Q10:Q35,"median")+SUMIFS(N10:N35,D10:D35,"NVA",Q10:Q35,"Mode") -> 01:36:00
C44: Value add Total (%) | D44: VA | F44: =F41/F37 -> 0.18 | G44: 0.2389937108 | H44: 0.2150537628 | I44: 0.7127659578 | J44: 0.4729729738 | K44: 0.3196721319 | L44: 0.6982758608 | P44: =P41/P37 -> 0.4681440444
C45: Non Value Add Total (%) | D45: NVA | F45: =F42/F37 -> 0.8199999994 | G45: 0.7610062891 | H45: 0.7849462366 | I45: 0.2872340426 | J45: 0.5270270274 | K45: 0.680327869 | L45: 0.3017241385 | P45: =P42/P37 -> 0.5318559556

Sheet Time Ob (Cycle - ADA)
B1: Time Observation Form - ADA Cycle Time
B2: Process Boundaries
B3: From | C3: Identify next patient for blood test and/or ECG | E3: Process | G3: ADA carries out blood test and/or ECG | J3: Time Available (mins) | M3: Date | O3: 2023-05-05
B4: To | C4: Blood test and/or ECG completed for patient | E4: Cycle | G4: ADA | J4: Demand | M4: Time | O4: 09:00 - 12:00
B5: Area | C5: KGH ED | E5: Operator Title | G5: ADA | J5: Takt Time (Sec) | M5: Completed By | O5: Neha
D8: Most Frequent Task Time
B9: Step # | C9: Description of Operation | D9: Waste | E9: Waiting Time (W) / Processing Time (P) | F9: 1 | G9: 2 | H9: 3 | I9: 4 | J9: 5 | K9: 6 | L9: 7 | M9: Mode | N9: Median | O9: Selected Value (User input required)
B10: =ROW(B1) -> 1 | C10: Find next patient in Careflow and print patient paperwork | F10: 00:00:00 | G10: 00:00:00 | H10: 00:00:00 | I10: 00:00:00 | J10: 00:00:00 | K10: 00:00:00 | L10: 00:00:00
E11: P | F11: =IF(ISBLANK(F10),"",IF(ISBLANK(F12),"",F12-F10)) -> 00:00:00 | G11: 00:00:00 | H11: 00:00:00 | I11: 00:00:00 | J11: 00:00:00 | K11: 00:02:00 | L11: 00:03:00 | N11: 00:02:30 | O11: Median
B12: 2 | C12: Prepare blood test tray | F12: 00:00:00 | G12: 00:00:00 | H12: 00:00:00 | I12: 00:00:00 | J12: 00:00:00 | K12: 00:02:00 | L12: 00:03:00
E13: P | F13: =IF(ISBLANK(F12),"",IF(ISBLANK(F14),"",F14-F12)) -> 00:00:00 | G13: 00:00:00 | H13: 00:00:00 | I13: 00:00:00 | J13: 00:00:00 | K13: 00:03:00 | L13: 00:01:00 | N13: 00:02:00 | O13: Median
B14: 3 | C14: Call patient to ADA room | F14: 00:00:00 | G14: 00:00:00 | H14: 00:00:00 | I14: 00:00:00 | J14: 00:00:00 | K14: 00:05:00 | L14: 00:04:00
E15: P | F15: =IF(ISBLANK(F14),"",IF(ISBLANK(F16),"",F16-F14)) -> 00:03:00 | G15: 00:00:00 | H15: 00:00:00 | I15: 00:00:00 | J15: 00:00:00 | K15: 00:04:00 | L15: 00:06:00 | N15: 00:04:00 | O15: Median
B16: 4 | C16: Do blood test | F16: 00:03:00 | G16: 00:00:00 | H16: 00:00:00 | I16: 00:00:00 | J16: 00:00:00 | K16: 00:09:00 | L16: 00:10:00
E17: P | F17: 00:06:00 | G17: =IF(ISBLANK(G16),"",IF(ISBLANK(G18),"",G18-G16)) -> 00:06:00 | H17: 00:03:00 | I17: 00:04:00 | J17: 00:05:00 | K17: 00:03:00 | L17: 00:04:00 | N17: =IFERROR(MEDIAN(F17:L17),"") -> 00:04:00 | O17: Median
B18: 5 | C18: Do ECG | F18: 00:00:00 | G18: 00:06:00 | H18: 00:03:00 | I18: 00:04:00 | J18: 00:05:00 | K18: 00:12:00 | L18: 00:14:00
E19: P | F19: 00:00:00 | G19: =IF(ISBLANK(G18),"",IF(ISBLANK(G20),"",G20-G18)) -> 00:05:00 | H19: 00:00:00 | I19: 00:00:00 | J19: 00:00:00 | K19: 00:00:00 | L19: 00:00:00 | M19: 00:05:00 | O19: Mode
B20: 4 | C20: Label & bag samples. Do blood gas test. | F20: 00:09:00 | G20: 00:11:00 | H20: 00:03:00 | I20: 00:04:00 | J20: 00:05:00 | K20: 00:12:00 | L20: 00:14:00
E21: P | F21: =IF(ISBLANK(F20),"",IF(ISBLANK(F22),"",F22-F20)) -> 00:03:00 | G21: 00:05:00 | H21: 00:05:00 | I21: 00:08:00 | J21: 00:07:00 | K21: 00:04:00 | L21: 00:04:00 | M21: =IFERROR(MODE(F21:L21),"") ->  | N21: =IFERROR(MEDIAN(F21:L21),"") -> 00:05:00 | O21: Median
B22: 6 | C22: Take blood gas and /or ECG results to doctor | F22: 00:12:00 | G22: 00:16:00 | H22: 00:08:00 | I22: 00:12:00 | J22: 00:12:00 | K22: 00:16:00 | L22: 00:18:00
E23: P | F23: =IF(ISBLANK(F22),"",IF(ISBLANK(F24),"",F24-F22)) -> 00:01:00 | G23: 00:02:00 | H23: =IF(ISBLANK(H22),"",IF(ISBLANK(H24),"",H24-H22)) -> 00:00:00 | I23: =IF(ISBLANK(I22),"",IF(ISBLANK(I24),"",I24-I22)) -> 00:00:00 | J23: =IF(ISBLANK(J22),"",IF(ISBLANK(J24),"",J24-J22)) -> 00:00:00 | K23: =IF(ISBLANK(K22),"",IF(ISBLANK(K24),"",K24-K22)) -> 00:00:00 | L23: =IF(ISBLANK(L22),"",IF(ISBLANK(L24),"",L24-L22)) -> 00:00:00 | N23: 00:01:30 | O23: Median
B24: 7 | C24: Take sample to POD machine | F24: 00:13:00 | G24: 00:18:00 | H24: 00:08:00 | I24: 00:12:00 | J24: 00:12:00 | K24: 00:16:00 | L24: 00:18:00
E25: P | F25: =IF(ISBLANK(F24),"",IF(ISBLANK(F26),"",F26-F24)) -> 00:01:00 | G25: 00:06:00 | H25: 00:00:00 | I25: 00:00:00 | J25: 00:00:00 | K25: 00:00:00 | L25: 00:00:00 | N25: 00:03:30 | O25: Median
B26: 8 | C26: End | F26: 00:14:00 | G26: 00:24:00 | H26: 00:08:00 | I26: 00:12:00 | J26: 00:12:00 | K26: 00:16:00 | L26: 00:18:00
M27: =IFERROR(MODE(F27:L27),"") ->  | N27: =IFERROR(MEDIAN(F27:L27),"") -> 
C30: Time For One Observation | F30: =F31+F32 -> 00:14:00 | G30: 00:24:00 | H30: 00:08:00 | I30: 00:12:00 | J30: 00:12:00 | K30: 00:16:00 | L30: 00:18:00 | N30: =N31+N32 -> 00:27:30
C31: Minus Walking/Wait Time | D31: W | F31: =SUMIF($E$10:$E$28,"W",F10:F28) -> 00:00:00 | G31: 00:00:00 | H31: 00:00:00 | I31: 00:00:00 | J31: 00:00:00 | K31: 00:00:00 | L31: 00:00:00 | N31: =SUMIFS(N10:N27,E10:E27,"W",O10:O27,"median")+SUMIFS(M10:M27,E10:E27,"W",O10:O27,"Mode") -> 00:00:00
C32: .= Processing Time | D32: P | F32: =SUMIF($E$10:$E$28,"P",F10:F28) -> 00:14:00 | G32: 00:24:00 | H32: 00:08:00 | I32: 00:12:00 | J32: 00:12:00 | K32: 00:16:00 | L32: 00:18:00 | N32: =SUMIFS(N10:N27,E10:E27,"P",O10:O27,"median")+SUMIFS(M10:M27,E10:E27,"P",O10:O27,"Mode") -> 00:27:30

Sheet Time Ob (Cycle - Nurse)
B1: Time Observation Form - Cycle Time Nurse
B2: Process Boundaries
B3: From | C3: Nurse first contact with patient in SDEC | E3: Process | H3: Patient journey through SDEC | O3: Time Available (mins) | R3: Date | U3: 2023-06-12
B4: To | C4: Patient discharged from SDEC | E4: Cycle | H4: SDEC Nurse Assessment and Treatment | O4: Demand | R4: Time | U4: 08.45 - 16:45
B5: Area | C5: KGH SDEC | E5: Operator Title | H5: Nurse | O5: Takt Time (Sec) | R5: Completed By | U5: G. Allick
E7: Patient Scored >> | F7: YES | G7: YES | H7: YES | I7: YES | J7: YES | K7: YES | L7: YES
P8: Most Frequent Task Time
B9: Step # | C9: Description of Operation | D9: Waste | E9: Waiting/Walking Time (W) / Processing Time (P) | F9: 1 | G9: 2 | H9: 3 | I9: 4 | J9: 5 | K9: 6 | L9: 7 | M9: Include zero values in Mode | N9: Mode | O9: Include zero values in Median | P9: Median | Q9: Selected Value (User input required)
B10: 1 | C10: Nurse initial contact | F10: 00:00:00 | G10: 00:00:00 | H10: 00:00:00 | I10: 00:00:00 | J10: 00:00:00 | K10: 00:00:00 | L10: 00:00:00
E11: P | F11: 00:01:00 | G11: 00:00:00 | H11: 00:01:00 | I11: 00:01:00 | J11: 00:01:00 | K11: 00:04:00 | L11: 00:04:00 | M11: NO | N11: =IFERROR(IF(M11="NO",MODE(IF($F$7:$L$7="YES",IF(F11:L11>0,F11:L11))),MODE(IF($F$7:$L$7="YES",F11:L11))),"") -> 00:01:00 | O11: NO | P11: =IFERROR(IF(O11="NO",MEDIAN(IF($F$7:$L$7="YES",IF(F11:L11>0,F11:L11))),MEDIAN(IF($F$7:$L$7="YES",F11:L11))),"") -> 00:01:00 | Q11: Mode
B12: 2 | C12: Nurse check urine | F12: 00:01:00 | G12: 00:00:00
E13: P | F13: 00:03:00 | G13: 00:09:00 | M13: NO | N13: =IFERROR(IF(M13="NO",MODE(IF($F$7:$L$7="YES",IF(F13:L13>0,F13:L13))),MODE(IF($F$7:$L$7="YES",F13:L13))),"") ->  | O13: NO | P13: =IFERROR(IF(O13="NO",MEDIAN(IF($F$7:$L$7="YES",IF(F13:L13>0,F13:L13))),MEDIAN(IF($F$7:$L$7="YES",F13:L13))),"") -> 00:06:00 | Q13: =IF(N13="","Median","Mode") -> Median
B14: 3 | C14: Nurse does Observations | F14: 00:04:00 | G14: 00:09:00 | H14: 00:01:00 | I14: 00:01:00 | K14: 00:04:00 | L14: 00:04:00
E15: P | F15: 00:01:00 | G15: 00:01:00 | H15: 00:02:00 | I15: 00:04:00 | K15: 00:07:00 | L15: 00:01:00 | M15: NO | N15: =IFERROR(IF(M15="NO",MODE(IF($F$7:$L$7="YES",IF(F15:L15>0,F15:L15))),MODE(IF($F$7:$L$7="YES",F15:L15))),"") -> 00:01:00 | O15: NO | P15: =IFERROR(IF(O15="NO",MEDIAN(IF($F$7:$L$7="YES",IF(F15:L15>0,F15:L15))),MEDIAN(IF($F$7:$L$7="YES",F15:L15))),"") -> 00:01:30 | Q15: =IF(N15="","Median","Mode") -> Mode
B16: 4 | C16: Nurse removes cannula | F16: 00:05:00
E17: P | F17: 00:03:00 | M17: NO | N17: =IFERROR(IF(M17="NO",MODE(IF($F$7:$L$7="YES",IF(F17:L17>0,F17:L17))),MODE(IF($F$7:$L$7="YES",F17:L17))),"") ->  | O17: NO | P17: =IFERROR(IF(O17="NO",MEDIAN(IF($F$7:$L$7="YES",IF(F17:L17>0,F17:L17))),MEDIAN(IF($F$7:$L$7="YES",F17:L17))),"") -> 00:03:00 | Q17: =IF(N17="","Median","Mode") -> Median
B18: 5 | C18: Nurse adminsters Treatment | H18: 00:03:00 | J18: 00:01:00 | K18: 00:11:00 | L18: 00:05:00
E19: P | H19: 00:07:00 | J19: 00:07:00 | K19: 00:10:00 | L19: 00:03:00 | M19: NO | N19: =IFERROR(IF(M19="NO",MODE(IF($F$7:$L$7="YES",IF(F19:L19>0,F19:L19))),MODE(IF($F$7:$L$7="YES",F19:L19))),"") -> 00:07:00 | O19: NO | P19: =IFERROR(IF(O19="NO",MEDIAN(IF($F$7:$L$7="YES",IF(F19:L19>0,F19:L19))),MEDIAN(IF($F$7:$L$7="YES",F19:L19))),"") -> 00:07:00 | Q19: =IF(N19="","Median","Mode") -> Mode
B20: 6 | C20: Nurse checks Treatment | H20: 00:10:00
E21: P | H21: 00:02:00 | M21: NO | N21: =IFERROR(IF(M21="NO",MODE(IF($F$7:$L$7="YES",IF(F21:L21>0,F21:L21))),MODE(IF($F$7:$L$7="YES",F21:L21))),"") ->  | O21: NO | P21: =IFERROR(IF(O21="NO",MEDIAN(IF($F$7:$L$7="YES",IF(F21:L21>0,F21:L21))),MEDIAN(IF($F$7:$L$7="YES",F21:L21))),"") -> 00:02:00 | Q21: =IF(N21="","Median","Mode") -> Median
B22: 9 | C22: Nurse Prepares Patient to be moved on to trolley for Scan/Xray | J22: 00:08:00 | L22: 00:08:00
E23: P | J23: 00:01:00 | L23: 00:01:00 | M23: NO | N23: =IFERROR(IF(M23="NO",MODE(IF($F$7:$L$7="YES",IF(F23:L23>0,F23:L23))),MODE(IF($F$7:$L$7="YES",F23:L23))),"") -> 00:01:00 | O23: NO | P23: =IFERROR(IF(O23="NO",MEDIAN(IF($F$7:$L$7="YES",IF(F23:L23>0,F23:L23))),MEDIAN(IF($F$7:$L$7="YES",F23:L23))),"") -> 00:01:00 | Q23: =IF(N23="","Median","Mode") -> Mode
B24: 10 | C24: Nurse does discharge Observations | F24: 00:08:00 | G24: 00:10:00 | J24: 00:09:00 | L24: 00:09:00
E25: P | F25: 00:00:00 | G25: 00:04:00 | J25: 00:02:00 | L25: 00:02:00 | M25: NO | N25: =IFERROR(IF(M25="NO",MODE(IF($F$7:$L$7="YES",IF(F25:L25>0,F25:L25))),MODE(IF($F$7:$L$7="YES",F25:L25))),"") -> 00:02:00 | O25: NO | P25: =IFERROR(IF(O25="NO",MEDIAN(IF($F$7:$L$7="YES",IF(F25:L25>0,F25:L25))),MEDIAN(IF($F$7:$L$7="YES",F25:L25))),"") -> 00:02:00 | Q25: =IF(N25="","Median","Mode") -> Mode
B26: 11 | C26: END | F26: 00:08:00 | G26: 00:14:00 | H26: 00:12:00 | I26: 00:05:00 | J26: 00:11:00 | K26: 00:21:00 | L26: 00:11:00
C29: Time For One Observation | F29: =F30+F31 -> 00:08:00 | G29: =G30+G31 -> 00:14:00 | H29: 00:12:00 | I29: 00:05:00 | J29: 00:11:00 | K29: 00:21:00 | L29: 00:11:00 | P29: =P30+P31 -> 00:23:00
C30: Minus Walking/Wait Time | D30: W | F30: =SUMIF($E$10:$E$27,"W",F10:F27) -> 00:00:00 | G30: 00:00:00 | H30: 00:00:00 | I30: 00:00:00 | J30: 00:00:00 | K30: 00:00:00 | L30: 00:00:00 | P30: =SUMIFS(P10:P27,E10:E27,"W",Q10:Q27,"median")+SUMIFS(N10:N27,E10:E27,"W",Q10:Q27,"Mode") -> 00:00:00
C31: .= Processing Time | D31: P | F31: =SUMIF($E$10:$E$27,"P",F10:F27) -> 00:08:00 | G31: 00:14:00 | H31: 00:12:00 | I31: 00:05:00 | J31: 00:11:00 | K31: 00:21:00 | L31: 00:11:00 | P31: =SUMIFS(P10:P27,E10:E27,"P",Q10:Q27,"median")+SUMIFS(N10:N27,E10:E27,"P",Q10:Q27,"Mode") -> 00:23:00

Sheet Time Ob (Cycle - Doctor)
B1: Time Observation Form - Cycle Time Doctor
B2: Process Boundaries
B3: From | C3: Doctors first contact with patient in SDEC | E3: Process | G3: Patient journey through SDEC | J3: Time Available (mins) | M3: Date | P3: 13-14/06/2023
B4: To | C4: Patient discharged from SDEC | E4: Cycle | G4: SDEC Doctor Assessment and Treatment | J4: Demand | M4: Time | P4: 09:00 - 16:00
B5: Area | C5: KGH SDEC | E5: Operator Title | G5: Doctor | J5: Takt Time (Sec) | M5: Completed By | P5: E. King
E7: Patient Scored >> | F7: YES | G7: YES | H7: YES | I7: YES | J7: YES | K7: YES | L7: YES
I8: Most Frequent Task Time
B9: Step # | C9: Description of Operation | D9: Waste | E9: Waiting/Walking Time (W) / Processing Time (P) | F9: 1 | G9: 2 | H9: 3 | I9: 4 | J9: 5 | K9: 6 | L9: 7 | M9: Include zero values in Mode | N9: Mode | O9: Include zero values in Median | P9: Median | Q9: Selected Value (User input required)
B10: 1 | C10: Doctor Checks Patient Notes | F10: 00:00:00 | G10: 00:00:00 | H10: 00:00:00 | I10: 00:00:00 | J10: 00:00:00 | K10: 00:00:00 | L10: 00:00:00
E11: P | F11: =IF(ISBLANK(F10),"",IF(ISBLANK(F12),"",ROUND(F12-F10,10))) -> 00:03:00 | G11: =IF(ISBLANK(G10),"",IF(ISBLANK(G12),"",ROUND(G12-G10,10))) -> 00:10:00 | H11: 00:02:00 | I11: 00:05:00 | J11: 00:01:00 | K11: 00:01:00 | L11: 00:08:05 | M11: NO | N11: =IFERROR(IF(M11="NO",MODE(IF($F$7:$L$7="YES",IF(F11:L11>0,F11:L11))),MODE(IF($F$7:$L$7="YES",F11:L11))),"") -> 00:01:00 | O11: NO | P11: =IFERROR(IF(O11="NO",MEDIAN(IF($F$7:$L$7="YES",IF(F11:L11>0,F11:L11))),MEDIAN(IF($F$7:$L$7="YES",F11:L11))),"") -> 00:03:00 | Q11: Mode
B12: =B10+1 -> 2 | C12: Doctor Collects Patient | F12: 00:03:00 | G12: 00:10:00 | H12: 00:02:00 | I12: 00:05:00 | J12: 00:01:00 | K12: 00:01:00 | L12: 00:08:05
E13: W | F13: =IF(ISBLANK(F12),"",IF(ISBLANK(F14),"",ROUND(F14-F12,10))) -> 00:01:00 | G13: 00:01:00 | H13: 00:02:00 | I13: 00:01:00 | J13: 00:01:00 | K13: 00:01:00 | L13: 00:00:00 | M13: NO | N13: =IFERROR(IF(M13="NO",MODE(IF($F$7:$L$7="YES",IF(F13:L13>0,F13:L13))),MODE(IF($F$7:$L$7="YES",F13:L13))),"") -> 00:01:00 | O13: NO | P13: =IFERROR(IF(O13="NO",MEDIAN(IF($F$7:$L$7="YES",IF(F13:L13>0,F13:L13))),MEDIAN(IF($F$7:$L$7="YES",F13:L13))),"") -> 00:01:00 | Q13: =IF(N13="","Median","Mode") -> Mode
B14: =B12+1 -> 3 | C14: Doctor Examines Patient | F14: 00:04:00 | G14: 00:11:00 | H14: 00:04:00 | I14: 00:06:00 | J14: 00:02:00 | K14: 00:02:00 | L14: 00:08:05
E15: P | F15: =IF(ISBLANK(F14),"",IF(ISBLANK(F16),"",ROUND(F16-F14,10))) -> 00:28:00 | G15: 00:18:00 | H15: 00:10:00 | I15: 00:07:00 | J15: 00:11:00 | K15: 00:15:00 | L15: 00:08:21 | M15: NO | N15: =IFERROR(IF(M15="NO",MODE(IF($F$7:$L$7="YES",IF(F15:L15>0,F15:L15))),MODE(IF($F$7:$L$7="YES",F15:L15))),"") ->  | O15: NO | P15: =IFERROR(IF(O15="NO",MEDIAN(IF($F$7:$L$7="YES",IF(F15:L15>0,F15:L15))),MEDIAN(IF($F$7:$L$7="YES",F15:L15))),"") -> 00:11:00 | Q15: =IF(N15="","Median","Mode") -> Median
B16: =B14+1 -> 4 | C16: Extra Tests Requested | F16: 00:32:00 | G16: 00:29:00 | H16: 00:14:00 | I16: 00:13:00 | J16: 00:13:00 | K16: 00:17:00 | L16: 00:16:26
E17: P | F17: =IF(ISBLANK(F16),"",IF(ISBLANK(F18),"",ROUND(F18-F16,10))) -> 00:03:00 | G17: 00:06:00 | H17: 00:03:00 | I17: 00:00:00 | J17: 00:00:00 | K17: 00:00:00 | L17: 00:04:37 | M17: NO | N17: =IFERROR(IF(M17="NO",MODE(IF($F$7:$L$7="YES",IF(F17:L17>0,F17:L17))),MODE(IF($F$7:$L$7="YES",F17:L17))),"") -> 00:03:00 | O17: NO | P17: =IFERROR(IF(O17="NO",MEDIAN(IF($F$7:$L$7="YES",IF(F17:L17>0,F17:L17))),MEDIAN(IF($F$7:$L$7="YES",F17:L17))),"") -> 00:03:48.500 | Q17: =IF(N17="","Median","Mode") -> Mode
B18: =B16+1 -> 5 | C18: Doctor Waits for Results | F18: 00:35:00 | G18: 00:35:00 | H18: 00:17:00 | I18: 00:13:00 | J18: 00:13:00 | K18: 00:17:00 | L18: 00:21:03
E19: W | F19: =IF(ISBLANK(F18),"",IF(ISBLANK(F20),"",ROUND(F20-F18,10))) -> 00:47:00 | G19: 00:40:00 | H19: 00:40:00 | I19: 00:36:00 | J19: 00:46:00 | K19: 00:30:00 | L19: 01:24:16 | M19: NO | N19: =IFERROR(IF(M19="NO",MODE(IF($F$7:$L$7="YES",IF(F19:L19>0,F19:L19))),MODE(IF($F$7:$L$7="YES",F19:L19))),"") -> 00:40:00 | O19: NO | P19: =IFERROR(IF(O19="NO",MEDIAN(IF($F$7:$L$7="YES",IF(F19:L19>0,F19:L19))),MEDIAN(IF($F$7:$L$7="YES",F19:L19))),"") -> 00:40:00 | Q19: =IF(N19="","Median","Mode") -> Mode
B20: =B18+1 -> 6 | C20: Doctor Evaluates Results | F20: 01:22:00 | G20: 01:15:00 | H20: 00:57:00 | I20: 00:49:00 | J20: 00:59:00 | K20: 00:47:00 | L20: 01:45:19
E21: P | F21: =IF(ISBLANK(F20),"",IF(ISBLANK(F22),"",ROUND(F22-F20,10))) -> 00:10:00 | G21: 00:15:00 | H21: 00:19:00 | I21: 00:06:00 | J21: 00:18:00 | K21: 00:08:00 | L21: 00:17:54 | M21: NO | N21: =IFERROR(IF(M21="NO",MODE(IF($F$7:$L$7="YES",IF(F21:L21>0,F21:L21))),MODE(IF($F$7:$L$7="YES",F21:L21))),"") ->  | O21: NO | P21: =IFERROR(IF(O21="NO",MEDIAN(IF($F$7:$L$7="YES",IF(F21:L21>0,F21:L21))),MEDIAN(IF($F$7:$L$7="YES",F21:L21))),"") -> 00:15:00 | Q21: =IF(N21="","Median","Mode") -> Median
B22: =B20+1 -> 7 | C22: Doctor Updates Careflow | F22: 01:32:00 | G22: 01:30:00 | H22: 01:16:00 | I22: 00:55:00 | J22: 01:17:00 | K22: 00:55:00 | L22: 02:03:13
E23: P | F23: =IF(ISBLANK(F22),"",IF(ISBLANK(F24),"",ROUND(F24-F22,10))) -> 00:10:00 | G23: 00:22:00 | H23: 00:09:00 | I23: 00:26:00 | J23: 00:21:00 | K23: 00:16:00 | L23: 00:16:57 | M23: NO | N23: =IFERROR(IF(M23="NO",MODE(IF($F$7:$L$7="YES",IF(F23:L23>0,F23:L23))),MODE(IF($F$7:$L$7="YES",F23:L23))),"") ->  | O23: NO | P23: =IFERROR(IF(O23="NO",MEDIAN(IF($F$7:$L$7="YES",IF(F23:L23>0,F23:L23))),MEDIAN(IF($F$7:$L$7="YES",F23:L23))),"") -> 00:16:57 | Q23: =IF(N23="","Median","Mode") -> Median
B24: =B22+1 -> 8 | C24: Patient Discharged from SDEC | F24: 01:42:00 | G24: 01:52:00 | H24: 01:25:00 | I24: 01:21:00 | J24: 01:38:00 | K24: 01:11:00 | L24: 02:20:10
E25: P | M25: NO | N25: =IFERROR(IF(M25="NO",MODE(IF($F$7:$L$7="YES",IF(F25:L25>0,F25:L25))),MODE(IF($F$7:$L$7="YES",F25:L25))),"") ->  | O25: NO | P25: =IFERROR(IF(O25="NO",MEDIAN(IF($F$7:$L$7="YES",IF(F25:L25>0,F25:L25))),MEDIAN(IF($F$7:$L$7="YES",F25:L25))),"") ->  | Q25: =IF(N25="","Median","Mode") -> Median
C27: Time For One Observation | F27: =F28+F29 -> 01:42:00 | G27: 01:52:00 | H27: 01:25:00 | I27: 01:21:00 | J27: 01:38:00 | K27: 01:11:00 | L27: 02:20:10 | P27: =P28+P29 -> 01:27:57
C28: Minus Walking/Wait Time | D28: W | F28: =SUMIF($E$10:$E$25,"W",F10:F25) -> 00:48:00 | G28: 00:41:00 | H28: 00:42:00 | I28: 00:37:00 | J28: 00:47:00 | K28: 00:31:00 | L28: 01:24:16 | P28: =SUMIFS(P10:P25,E10:E25,"W",Q10:Q25,"median")+SUMIFS(N10:N25,E10:E25,"W",Q10:Q25,"Mode") -> 00:41:00
C29: .= Processing Time | D29: P | F29: =SUMIF($E$10:$E$25,"P",F10:F25) -> 00:54:00 | G29: 01:11:00 | H29: 00:43:00 | I29: 00:44:00 | J29: 00:51:00 | K29: 00:40:00 | L29: 00:55:54 | P29: =SUMIFS(P10:P25,E10:E25,"P",Q10:Q25,"median")+SUMIFS(N10:N25,E10:E25,"P",Q10:Q25,"Mode") -> 00:46:57

Sheet Staff Feedback Survey Data (hidden)
A1: No | B1: Date | C1: Role | D1: Q1: How would you rate the new process from 1 - 5? | E1: Why? | F1: Q1: How would you rate the new process from 1 - 5 Themed | G1: Q2: Have you been clearly communicated what you should be doing? | H1: Comments | I1: Q2: Have you been clearly communicated what you should be doing? Themed | J1: Q3: If you could describe this process in a word, what would you choose? | K1: Q3: If you could describe this process in a word, what would you choose? Themed | L1: Q4: If you could change anything, what would you change? | M1: Q4: If you could change anything, what would you change? Themed | N1: Q4: If you could change anything, what would you change? High Themed | O1: Q5: What do you think should have been done better? | P1: Q5: What do you think should have been done better? Themed | Q1: Q5: What do you think should have been done better? High Themed
A2: 1 | B2: 2023-06-09 | C2: Doctor (F2) | D2: 4 | E2: Good flow of patients, but issue with ultrasound not prioritising SDEC patients | F2: Patient flow | G2: Yes | H2: Huddles are good. | I2: All clearly communicated | J2: Structured | K2: Working | L2: Having to check the system for patients that may be suitable for SDEC from rafting. | M2: IT systems monitoring | N2: IT | O2: Better communication with other departments- some had not heard of SDEC. | P2: Clearer communication. | Q2: Communication
A3: 2 | B3: 2023-06-09 | C3: Nurse in Charge | D3: 4 | E3: Appropriate patients are being identified for the are. Only problems today are IT related (Patient Flow and Care Flow not mirroring) | F3: Clear Criteria | G3: Yes | H3: Received email before but prefers learning on the job/in practice. | I3: All clearly communicated | J3: Efficient | K3: Working | L3: IT systems - Patient Flow and Care Flow need to mirror each other so staff don't have to type in information twice. | M3: IT systems mirroring | N3: IT | O3: It could have been made more clear that Majors B will no longer exist and become SDEC as we thought SDEC was just going to be part of the area. | P3: Clearer communication. | Q3: Communication
A4: 3 | B4: 2023-06-09 | C4: Nurse in Charge | D4: 5 | E4: Exclusions are clear - we know what type of patients are suitable. Huddles are working well. | F4: Clear Criteria | G4: Yes | H4: Email received and also had MS Teams session about Patient Flow Whiteboard. | I4: All clearly communicated | J4: Excellent | K4: Working | L4: IT systems - not mirroring each other, have to enter data in severak places e.g. on VitalPac and Care Flow | M4: IT systems mirroring | N4: IT | O4: Having a visible list of all staff who have received training on the new process so you know who is on shift that know what is happening and who may need more support. | P4: Training database. | Q4: Training
A5: 4 | B5: 2023-06-09 | C5: HCA | D5: 4 | E5: It's a new process but going well so far. Good flow today. | F5: Patient flow | G5: Yes | H5: Clear on patient criteria and on own role. | I5: All clearly communicated | J5: Good | K5: Working | L5: SDEC patients not visible on VitalPac Device of HCA in waiting area for monitoring of obs. | M5: IT systems errors | N5: IT
A6: 5 | B6: 2023-06-13 | C6: Doctor | D6: 4 | E6: Good flow of patients. Still room for improvement with examination room set up | F6: Patient flow | G6: Yes | H6: Confident and competent | I6: All clearly communicated | J6: Good | K6: Working | L6: Entering information on Care Flow is very time consuming | M6: IT systems mirroring | N6: IT | O6: Set up of examination rooms- have already changed once | P6: Layout | Q6: Layout
A7: 6 | B7: 2023-06-13 | C7: Nurse in Charge | D7: 3 | E7: Very new process and first day for staff member. IT related issues | F7: IT | G7: Yes | H7: Read the presentation but otherwise learning as I go. | I7: All clearly communicated | J7: Okay | K7: Working | L7: IT system | M7: IT system | N7: IT | O7: More training on IT system | P7: IT Training | Q7: Training
A8: 7 | B8: 2023-06-14 | C8: Doctor | D8: 4 | E8: Good flow in SDEC but can see patients waiting to be moved over from 'Rafting'. | F8: Patient flow | G8: Yes | H8: Good commication between others and at huddles | I8: All clearly communicated | J8: Good | K8: Working | L8: All the duplicate information required to be added onto Careflow | M8: IT systems mirroring | N8: IT | O8: Communication with other departments, unless you have worked on SDEC some people are still unaware. | P8: Clearer communication. | Q8: Communication
A9: 8 | C9: Question 5 Comment from 1 | N9: Communication
A10: 9 | C10: Question 5 Comment from 2 | N10: Communication
A11: 10 | C11: Question 5 Comment from 3 | N11: Training
A12: 11 | C12: Question 5 Comment from 4 | N12: Layout
A13: 12 | C13: Question 5 Comment from 5 | N13: Training
A14: 13 | C14: Question 5 Comment from 6 | N14: Communication

Sheet Staff Feedback Survey Data 1 (hidden)
A1: No | B1: Date | C1: Role | D1: Q1: How would you rate the new process from 1 - 5? | E1: Why? | F1: Q1: How would you rate the new process from 1 - 5 Themed | G1: Q2: Have you been clearly communicated what you should be doing? | H1: Comments | I1: Q2: Have you been clearly communicated what you should be doing? Themed | J1: Q3: If you could describe this process in a word, what would you choose? | K1: Q3: If you could describe this process in a word, what would you choose? Themed | L1: Q4: If you could change anything, what would you change? | M1: Q4: If you could change anything, what would you change? Themed | N1: Q4: If you could change anything, what would you change? High Themed | O1: Q5: What do you think should have been done better? | P1: Q5: What do you think should have been done better? Themed | Q1: Q5: What do you think should have been done better? High Themed
A2: 1 | B2: 2023-06-09 | C2: Doctor (F2) | D2: 4 | E2: Good flow of patients, but issue with ultrasound not prioritising SDEC patients | F2: Patient flow | G2: Yes | H2: Huddles are good. | I2: Huddles | J2: Structured | K2: Working | L2: Having to check the system for patients that may be suitable for SDEC from rafting. | M2: IT systems monitoring | N2: IT | O2: Better communication with other departments- some had not heard of SDEC. | P2: Clearer communication. | Q2: Communication
A3: 2 | B3: 2023-06-09 | C3: Nurse in Charge | D3: 4 | E3: Appropriate patients are being identified for the are. Only problems today are IT related (Patient Flow and Care Flow not mirroring) | F3: IT - Patient Flow and Care Flow systems | G3: Yes | H3: Received email before but prefers learning on the job/in practice. | I3: Practical Learning | J3: Efficient | K3: Working | L3: IT systems - Patient Flow and Care Flow need to mirror each other so staff don't have to type in information twice. | M3: IT systems mirroring | N3: IT | O3: It could have been made more clear that Majors B will no longer exist and become SDEC as we thought SDEC was just going to be part of the area. | P3: Clearer communication. | Q3: Communication
A4: 3 | B4: 2023-06-09 | C4: Nurse in Charge | D4: 5 | E4: Exclusions are clear - we know what type of patients are suitable. Huddles are working well. | F4: Clear Criteria | G4: Yes | H4: Email received and also had MS Teams session about Patient Flow Whiteboard. | I4: MS Teams sessions | J4: Excellent | K4: Working | L4: IT systems - not mirroring each other, have to enter data in severak places e.g. on VitalPac and Care Flow | M4: IT systems mirroring | N4: IT | O4: Having a visible list of all staff who have received training on the new process so you know who is on shift that know what is happening and who may need more support. | P4: Training database. | Q4: Training
A5: 4 | B5: 2023-06-09 | C5: HCA | D5: 4 | E5: It's a new process but going well so far. Good flow today. | F5: Patient flow | G5: Yes | H5: Clear on patient criteria and on own role. | I5: Criteria + Roles | J5: Good | K5: Working | L5: SDEC patients not visible on VitalPac Device of HCA in waiting area for monitoring of obs. | M5: IT systems errors | N5: IT | O5: N/A | P5: N/A | Q5: N/A
A6: 5 | B6: 2023-06-13 | C6: Doctor | D6: 4 | E6: Good flow of patients. Still room for improvement with examination room set up | F6: Patient flow | G6: Yes | H6: Confident and competent | I6: Criteria + Roles | J6: Good | K6: Working | L6: Entering information on Care Flow is very time consuming | M6: IT mirroring | N6: IT | O6: Set up of examination rooms- have already changed once | P6: Layout | Q6: Layout
A7: 6 | B7: 2023-06-13 | C7: Nurse in Charge | D7: 3 | E7: Very new process and first day for staff member. IT related issues | F7: IT | G7: Yes and no | H7: Read the presentation but otherwise learning as I go. | I7: Practical Learning | J7: Okay | K7: Working | L7: IT system | M7: IT system | N7: IT | O7: More training on IT system | P7: IT Training | Q7: Training
A8: 7 | B8: 2023-06-14 | C8: Doctor | D8: 4 | E8: Good flow in SDEC but can see patients waiting to be moved over from 'Rafting'. | F8: Patient flow | G8: Yes | H8: Good commication between others and at huddles | I8: Huddles | J8: Good | K8: Working | L8: All the duplicate information required to be added onto Careflow | M8: IT systems mirroring | N8: IT | O8: Communication with other departments, unless you have worked on SDEC some people are still unaware. | P8: Clearer communication. | Q8: Communication
A9: 8
A10: 9
A11: 10
A12: 11
A13: 12
A14: 13
A15: 14
A16: 15
A17: 16
A18: 17
A19: 18
A20: 19
A21: 20
A22: 21
A23: 22
A24: 23
A25: 24
A26: 25
A27: 26
A28: 27
A29: 28
A30: 29
A31: 30
A32: 31
A33: 32
A34: 33
A35: 34
A36: 35
A37: 36
A38: 37
A39: 38
A40: 39
A41: 40
A42: 41
A43: 42

Sheet Staff Survey pivot table (hidden)
B3: Process rating. (Median) | O3: Process rating reason | T3: Understanding your role. | Z3: Describe Process in one word. | AE3: What would you change?
O4: Total | P4: =SUM(P7:P1048576) -> 7 | T4: Total | U4: =SUM(V7:V1048576) -> 7 | Z4: Total | AA4: =SUM(AA7:AA1048576) -> 7 | AE4: Total | AF4: =SUM(AF7:AF1048576) -> 13
O5: Count of No | T5: Count of No | Z5: Count of No | AE5: Count of No
B6: Role | C6: Q1: How would you rate the new process from 1 - 5? | K6: Role | L6: Process rating. | M6: Process Median | O6: Q1: How would you rate the new process from 1 - 5 Themed | P6: Total | T6: Q2: Have you been clearly communicated what you should be doing? Themed | U6: Q2: Have you been clearly communicated what you should be doing? | V6: Total | Z6: Q3: If you could describe this process in a word, what would you choose? Themed | AA6: Total | AE6: Q4: If you could change anything, what would you change? High Themed | AF6: Total
B7: Doctor (F2) | C7: 4 | K7: =$B$7 -> Doctor (F2) | L7: =C7 -> 4 | M7: =MEDIAN(L7:L1048576) -> 4 | O7: Patient flow | P7: 2 | Q7: =O7 -> Patient flow | R7: =P7/$P$4 -> 0.2857142857 | T7: All clearly communicated | U7: Yes | V7: 7 | W7: =T7 -> All clearly communicated | X7: =V7/$U$4 -> 1 | Z7: Working | AA7: 7 | AB7: =Z7 -> Working | AC7: =(AA8+AA7)/AA4 -> 1 | AE7: Communication | AF7: 3 | AG7: =AE7 -> Communication | AH7: =AF7/$AF$4 -> 0.2307692308
B8: Nurse in Charge | C8: 3 | K8: =$B$8 -> Nurse in Charge | L8: 3 | O8: Clear Criteria | P8: 2 | Q8: =O8 -> Clear Criteria | R8: =P8/$P$4 -> 0.2857142857 | AE8: IT | AF8: 7 | AG8: =AE8 -> IT | AH8: =AF8/$AF$4 -> 0.5384615385
C9: 4 | K9: =$B$8 -> Nurse in Charge | L9: 4 | O9: Patient flow | P9: 2 | Q9: Patient flow | R9: 0.2857142857 | AE9: Layout | AF9: 1 | AG9: =AE9 -> Layout | AH9: 0.07692307692
C10: 5 | K10: Nurse in Charge | L10: 5 | O10: IT | P10: 1 | Q10: IT | R10: 0.1428571429 | AE10: Training | AF10: 2 | AG10: =AE10 -> Training | AH10: 0.1538461538
B11: HCA | C11: 4 | K11: =$B$11 -> HCA | L11: 4
B12: Doctor | C12: 4 | K12: =$B$12 -> Doctor | L12: 4
F24: z

Sheet Patient Survey data (hidden)
A2: No | B2: Date | C2: Patient | D2: Q1: Did you receive good care today? If no, specify the reason why | E2: Q1: Did you receive good care today? If no, specify the reason why (One Word) | F2: Why? | G2: Q2: Have you been clearly communicated what your plan was? | H2: Q2: Have you been clearly communicated what your plan was? (One Word) | I2: Q3: If you could describe this process in a word, what would you choose? | J2: Q3: If you could describe this process in a word, what would you choose? Themed | K2: Q4: If you could change anything, what would you change? | L2: Q4: If you could change anything, what would you change? Themed
A3: 1 | B3: 2023-06-09 | C3: Patient | D3: Not dissatisfied or satisfied, good care but unknown wait time | E3: Yes | F3: Wait time | G3: Clear communication of plan but unknown wait time, may be returning tomorrow for ultrasound. | H3: Yes | I3: Inconsistent | J3: Poor | K3: Would rather be told to come back tomorrow rather than wait | L3: Waiting
A4: 2 | B4: 2023-06-13 | C4: Patient | D4: Yes, but it took too much time. | E4: Yes | F4: Wait time | G4: Yes | H4: Yes | I4: Good | J4: Working | K4: Make it a shorter time. | L4: Waiting
A5: 3 | B5: 2023-06-13 | C5: Patient | D5: Yes, expected to wait a lot longer | E5: Yes | F5: Wait time | G5: Yes, both doctor and nurses have confirmed plan | H5: Yes | I5: Great | J5: Working | K5: More privacy between chairs | L5: Privacy
A6: 4 | B6: 2023-06-14 | C6: Patient | D6: Average, didn't have to wait long to be seen but ideally need a bed to lay flat. Was told we couldn't lay on the beds even though they were free. | E6: Yes | F6: Suitable equipment | G6: Unknown as waiting for results | H6: No | I6: Okay | J6: Working | K6: Would be more comfortable to lay in a bed | L6: Equipment
A7: 5 | B7: 2023-06-14 | C7: Patient | D7: Yes, staff were nice | E7: Yes | F7: Staff | G7: Yes | H7: Yes | I7: Good | J7: Working | K7: Patient had to walk between assessment area and waiting area multiple times, uncomfortable to walk. | L7: Layout
A8: 6 | B8: 2023-06-14 | C8: Patient | D8: Yes, but wait was very long | E8: Yes | F8: Wait time | G8: Yes | H8: Yes | I8: Good | J8: Working | K8: Less time waiting | L8: Waiting
A9: 7 | B9: 2023-06-14 | C9: Patient | D9: Yes, doctors very good but were not informed when we could leave | E9: Yes | F9: Staff | G9: Yes | H9: Yes | I9: Good | J9: Working | K9: More staff | L9: Staff

Sheet Patient Survey data 1 (hidden)
A2: No | B2: Date | C2: Patient | D2: Q1: Did you receive good care today? If no, specify the reason why | E2: Why? | F2: Q2: Have you been clearly communicated what your plan was? | G2: Q2: Have you been clearly communicated what your plan was? (One Word) | H2: Q3: If you could describe this process in a word, what would you choose? | I2: Q3: If you could describe this process in a word, what would you choose? Themed | J2: Q4: If you could change anything, what would you change? | K2: Q4: If you could change anything, what would you change? Themed
A3: 1 | B3: 2023-06-09 | C3: Patient | D3: Not dissatisfied or satisfied, good care but unknown wait time | E3: Wait time | F3: Clear communication of plan but unknown wait time, may be returning tomorrow for ultrasound. | G3: Yes | H3: Inconsistent | I3: Poor | J3: Would rather be told to come back tomorrow rather than wait | K3: Waiting
A4: 2 | B4: 2023-06-13 | C4: Patient | D4: Yes, but it took too much time. | E4: Wait time | F4: Yes | G4: Yes | H4: Good | I4: Working | J4: Make it a shorter time. | K4: Waiting
A5: 3 | B5: 2023-06-13 | C5: Patient | D5: Yes, expected to wait a lot longer | E5: Wait time | F5: Yes, both doctor and nurses have confirmed plan | G5: Yes | H5: Great | I5: Working | J5: More privacy between chairs | K5: Privacy
A6: 4 | B6: 2023-06-14 | C6: Patient | D6: Average, didn't have to wait long to be seen but ideally need a bed to lay flat. Was told we couldn't lay on the beds even though they were free. | E6: Suitable equipment | F6: Unknown as waiting for results | G6: No | H6: Okay | I6: Working | J6: Would be more comfortable to lay in a bed | K6: Equipment
A7: 5 | B7: 2023-06-14 | C7: Patient | D7: Yes, staff were nice | E7: Staff | F7: Yes | G7: Yes | H7: Good | I7: Working | J7: Patient had to walk between assessment area and waiting area multiple times, uncomfortable to walk. | K7: Layout
A8: 6 | B8: 2023-06-14 | C8: Patient | D8: Yes, but wait was very long | E8: Wait time | F8: Yes | G8: Yes | H8: Good | I8: Working | J8: Less time waiting | K8: Waiting
A9: 7 | B9: 2023-06-14 | C9: Patient | D9: Yes, doctors very good but were not informed when we could leave | E9: Staff | F9: Yes | G9: Yes | H9: Good | I9: Working | J9: More staff | K9: Staff

Sheet Patient Survey pivot tables (hidden)
B2: Did you recieve good care today? | J2: Was your plan communicated clearly? | P2: Was your plan communicated clearly? | W2: Was your plan communicated clearly?
B5: Total | C5: =SUM(C7:C1048576) -> 7 | J5: Total | K5: =SUM(K7:K1048576) -> 7 | P5: Total | Q5: =SUM(Q8:Q1048576) -> 7 | W5: Total | X5: =SUM(X8:X1048576) -> 7
B6: Count of Patient | D6: Did you recieve good care today? | J6: Count of Patient | L6: Did you recieve good care today? | P6: Count of Patient | R6: Did you recieve good care today? | W6: Count of Patient | Y6: Did you recieve good care today?
B7: Q1: Did you receive good care today? If no, specify the reason why (One Word) | C7: Total | E7: Did you recieve good care today? | J7: Q2: Have you been clearly communicated what your plan was? (One Word) | K7: Total | P7: Q3: If you could describe this process in a word, what would you choose? Themed | Q7: Total | W7: Q4: If you could change anything, what would you change? Themed | X7: Total
B8: Yes | C8: 7 | D8: =B8 -> Yes | E8: =C8/C5 -> 1 | J8: Yes | K8: 6 | L8: =J8 -> Yes | M8: =K8/$K$5 -> 0.8571428571 | P8: Poor | Q8: 1 | R8: =P8 -> Poor | S8: =Q8/$Q$5 -> 0.1428571429 | W8: Waiting | X8: 2 | Y8: =W8 -> Waiting | Z8: =X8/$X$5 -> 0.2857142857
J9: No | K9: 1 | L9: =J9 -> No | M9: =K9/$K$5 -> 0.1428571429 | P9: Working | Q9: 6 | R9: =P9 -> Working | S9: =Q9/$Q$5 -> 0.8571428571 | W9: Privacy | X9: 1 | Y9: =W9 -> Privacy | Z9: =X9/$X$5 -> 0.1428571429
W10: Equipment | X10: 1 | Y10: Equipment | Z10: 0.1428571429
W11: Layout | X11: 1 | Y11: Layout | Z11: 0.1428571429
W12: Waiting | X12: 1 | Y12: Waiting | Z12: 0.1428571429
W13: Staff | X13: 1 | Y13: =W13 -> Staff | Z13: =X13/$X$5 -> 0.1428571429
